[Event "Late-Titled-Tuesday-Blitz-June-25-2024"]
[Site "Chess.com"]
[Date "2024.06.25"]
[Round "7"]
[White "dropstoneDP"]
[Black "Mops_2004"]
[Result "1/2-1/2"]
[WhiteElo "3009"]
[BlackElo "2804"]
[TimeControl "180+1"]
[EndTime "15:16:50 PDT"]
[Termination "Game drawn - insufficient material"]

1. e4 {[%clk 0:03:00.9]} 1... c5 {[%clk 0:03:00]} 2. Nf3 {[%clk 0:03:00.4]} 2...
e6 {[%clk 0:03:00.3]} 3. d4 {[%clk 0:03:00.4]} 3... cxd4 {[%clk 0:03:00.6]} 4.
Nxd4 {[%clk 0:03:01.3]} 4... Nc6 {[%clk 0:03:01]} 5. c3 {[%clk 0:02:58.5]} 5...
Nf6 {[%clk 0:02:58.1]} 6. Nxc6 {[%clk 0:02:58.1]} 6... bxc6 {[%clk 0:02:55.3]}
7. e5 {[%clk 0:02:57.8]} 7... Nd5 {[%clk 0:02:55.4]} 8. Nd2 {[%clk 0:02:58.2]}
8... d6 {[%clk 0:02:32.9]} 9. exd6 {[%clk 0:02:56.8]} 9... Bxd6 {[%clk 0:02:32]}
10. Ne4 {[%clk 0:02:57.2]} 10... Be7 {[%clk 0:02:27.2]} 11. Bd3 {[%clk
0:02:54.4]} 11... O-O {[%clk 0:02:25.6]} 12. O-O {[%clk 0:02:53.8]} 12... c5
{[%clk 0:02:23.7]} 13. Qh5 {[%clk 0:02:47.5]} 13... g6 {[%clk 0:02:17.7]} 14.
Qh6 {[%clk 0:02:44.7]} 14... Nf6 {[%clk 0:01:54.5]} 15. Bg5 {[%clk 0:02:30.6]}
15... Nxe4 {[%clk 0:01:51.5]} 16. Bxe7 {[%clk 0:02:29.5]} 16... Qxe7 {[%clk
0:01:51.7]} 17. Bxe4 {[%clk 0:02:29.9]} 17... Rb8 {[%clk 0:01:51.4]} 18. b3
{[%clk 0:02:26.7]} 18... Bb7 {[%clk 0:01:48.8]} 19. Bxb7 {[%clk 0:02:25.3]}
19... Rxb7 {[%clk 0:01:49.4]} 20. Rfd1 {[%clk 0:02:25.2]} 20... Rd8 {[%clk
0:01:44.5]} 21. Rxd8+ {[%clk 0:02:21.4]} 21... Qxd8 {[%clk 0:01:45.4]} 22. Qe3
{[%clk 0:02:17.6]} 22... Qd5 {[%clk 0:01:39.9]} 23. c4 {[%clk 0:02:13]} 23...
Qd6 {[%clk 0:01:39.2]} 24. h4 {[%clk 0:02:12.1]} 24... h5 {[%clk 0:01:38.6]} 25.
g3 {[%clk 0:02:10.8]} 25... Rd7 {[%clk 0:01:34.2]} 26. Re1 {[%clk 0:02:11.1]}
26... Qd2 {[%clk 0:01:26.1]} 27. Qxd2 {[%clk 0:02:06.9]} 27... Rxd2 {[%clk
0:01:25.5]} 28. Re5 {[%clk 0:02:07.8]} 28... Rxa2 {[%clk 0:01:23.4]} 29. Rxc5
{[%clk 0:02:08.3]} 29... a5 {[%clk 0:01:01.6]} 30. Kf1 {[%clk 0:02:06.7]} 30...
Kg7 {[%clk 0:00:48.2]} 31. Ke1 {[%clk 0:02:05.2]} 31... Kf6 {[%clk 0:00:45.2]}
32. Rb5 {[%clk 0:01:50.4]} 32... a4 {[%clk 0:00:35.4]} 33. b4 {[%clk 0:01:49.6]}
33... a3 {[%clk 0:00:33.9]} 34. Ra5 {[%clk 0:01:42.7]} 34... Rb2 {[%clk
0:00:28.6]} 35. Rxa3 {[%clk 0:01:41.1]} 35... Rxb4 {[%clk 0:00:29.2]} 36. Rc3
{[%clk 0:01:40]} 36... Ke7 {[%clk 0:00:28.5]} 37. c5 {[%clk 0:01:39.7]} 37...
Rb2 {[%clk 0:00:22.2]} 38. c6 {[%clk 0:01:37.4]} 38... Rb8 {[%clk 0:00:16.1]}
39. Ke2 {[%clk 0:01:36.3]} 39... Kd6 {[%clk 0:00:10.4]} 40. Rf3 {[%clk
0:01:27.2]} 40... f5 {[%clk 0:00:08.4]} 41. Rd3+ {[%clk 0:01:19.1]} 41... Kxc6
{[%clk 0:00:08.2]} 42. Ke3 {[%clk 0:01:18.9]} 42... Rb4 {[%clk 0:00:07.8]} 43.
Rd8 {[%clk 0:01:18.1]} 43... e5 {[%clk 0:00:02.7]} 44. Ra8 {[%clk 0:01:10.9]}
44... f4+ {[%clk 0:00:02.6]} 45. Kf3 {[%clk 0:01:08.2]} 45... fxg3 {[%clk
0:00:03]} 46. fxg3 {[%clk 0:01:07]} 46... Kd5 {[%clk 0:00:03.3]} 47. Ra6 {[%clk
0:00:59]} 47... Rg4 {[%clk 0:00:04.2]} 48. Rb6 {[%clk 0:00:49.8]} 48... e4+
{[%clk 0:00:04.7]} 49. Kg2 {[%clk 0:00:49.7]} 49... Kd4 {[%clk 0:00:04.7]} 50.
Kf2 {[%clk 0:00:43.1]} 50... g5 {[%clk 0:00:05]} 51. Rd6+ {[%clk 0:00:34.8]}
51... Ke5 {[%clk 0:00:03.4]} 52. Rh6 {[%clk 0:00:35.2]} 52... gxh4 {[%clk
0:00:02.3]} 53. Rxh5+ {[%clk 0:00:35.7]} 53... Kd4 {[%clk 0:00:02.8]} 54. Rxh4
{[%clk 0:00:33.2]} 54... Rxh4 {[%clk 0:00:03]} 55. gxh4 {[%clk 0:00:33.3]} 55...
Ke5 {[%clk 0:00:03.9]} 56. Ke3 {[%clk 0:00:33.3]} 56... Kf5 {[%clk 0:00:04.5]}
57. h5 {[%clk 0:00:34.2]} 57... Kg5 {[%clk 0:00:04.9]} 58. h6 {[%clk 0:00:35.1]}
58... Kxh6 {[%clk 0:00:05.8]} 59. Kxe4 {[%clk 0:00:36]} 1/2-1/2

[Event "Late-Titled-Tuesday-Blitz-June-25-2024"]
[Site "Chess.com"]
[Date "2024.06.25"]
[Round "7"]
[White "Fore_Man"]
[Black "chessdoll90"]
[Result "1-0"]
[WhiteElo "2234"]
[BlackElo "2498"]
[TimeControl "180+1"]
[EndTime "15:16:51 PDT"]
[Termination "Fore_Man won on time"]

1. Nf3 {[%clk 0:02:44]} 1... d5 {[%clk 0:02:57.2]} 2. g3 {[%clk 0:02:43.9]} 2...
Nf6 {[%clk 0:02:56.9]} 3. Bg2 {[%clk 0:02:44.6]} 3... g6 {[%clk 0:02:56.9]} 4.
O-O {[%clk 0:02:45.3]} 4... Bg7 {[%clk 0:02:57.5]} 5. d4 {[%clk 0:02:45.8]} 5...
O-O {[%clk 0:02:58.2]} 6. c4 {[%clk 0:02:44]} 6... dxc4 {[%clk 0:02:56.1]} 7.
Qa4 {[%clk 0:02:42.5]} 7... c6 {[%clk 0:02:56.1]} 8. Qxc4 {[%clk 0:02:42.4]}
8... Be6 {[%clk 0:02:44]} 9. Qc2 {[%clk 0:02:41.6]} 9... Nbd7 {[%clk 0:02:43.2]}
10. Nc3 {[%clk 0:02:40.6]} 10... Rc8 {[%clk 0:02:42.2]} 11. e4 {[%clk
0:02:40.2]} 11... Bc4 {[%clk 0:02:37.2]} 12. Rd1 {[%clk 0:02:39.3]} 12... e6
{[%clk 0:02:36.6]} 13. b3 {[%clk 0:02:38.8]} 13... Ba6 {[%clk 0:02:36.1]} 14.
Ba3 {[%clk 0:02:39.3]} 14... Re8 {[%clk 0:02:35.5]} 15. Qd2 {[%clk 0:02:34.8]}
15... Qa5 {[%clk 0:02:35]} 16. Bb2 {[%clk 0:02:33.7]} 16... c5 {[%clk
0:02:30.6]} 17. d5 {[%clk 0:02:29.4]} 17... exd5 {[%clk 0:02:03.8]} 18. exd5
{[%clk 0:02:30.3]} 18... c4 {[%clk 0:01:59.9]} 19. Nd4 {[%clk 0:02:27.1]} 19...
Nc5 {[%clk 0:01:48.9]} 20. Rab1 {[%clk 0:01:57.5]} 20... Nd3 {[%clk 0:01:44.4]}
21. Ba1 {[%clk 0:01:53.2]} 21... Ng4 {[%clk 0:01:37.6]} 22. Ne4 {[%clk
0:01:24.7]} 22... Qxd2 {[%clk 0:01:34]} 23. Rxd2 {[%clk 0:01:17.9]} 23... c3
{[%clk 0:01:33.3]} 24. Bxc3 {[%clk 0:00:56.5]} 24... Rxc3 {[%clk 0:01:31.1]} 25.
Nxc3 {[%clk 0:00:57.4]} 25... Bxd4 {[%clk 0:01:30.2]} 26. Nd1 {[%clk 0:00:56]}
26... Re1+ {[%clk 0:01:27.4]} 27. Bf1 {[%clk 0:00:53.5]} 27... Bxf2+ {[%clk
0:01:14.1]} 28. Nxf2 {[%clk 0:00:50.8]} 28... Rxb1 {[%clk 0:01:10.7]} 29. Nxg4
{[%clk 0:00:50.5]} 29... f5 {[%clk 0:00:27.5]} 30. Ne3 {[%clk 0:00:46.6]} 30...
Kf7 {[%clk 0:00:19.8]} 31. Kg2 {[%clk 0:00:43.9]} 31... Ne1+ {[%clk 0:00:16.7]}
32. Kf2 {[%clk 0:00:41]} 32... Bxf1 {[%clk 0:00:15.9]} 33. Nxf1 {[%clk
0:00:39.5]} 33... Nf3 {[%clk 0:00:16.1]} 34. Rc2 {[%clk 0:00:30.2]} 34... Nd4
{[%clk 0:00:14.1]} 35. Rc7+ {[%clk 0:00:23]} 35... Ke8 {[%clk 0:00:12.8]} 36.
Rxb7 {[%clk 0:00:19.8]} 36... Rb2+ {[%clk 0:00:10.9]} 37. Ke3 {[%clk 0:00:19.2]}
37... Nc2+ {[%clk 0:00:11.2]} 38. Kf4 {[%clk 0:00:18.3]} 38... Rxa2 {[%clk
0:00:10.5]} 39. Ke5 {[%clk 0:00:17.1]} 39... Ne1 {[%clk 0:00:06.4]} 40. d6
{[%clk 0:00:11.2]} 40... Nf3+ {[%clk 0:00:05]} 41. Kd5 {[%clk 0:00:11]} 41... a5
{[%clk 0:00:04.2]} 42. Ne3 {[%clk 0:00:08.2]} 42... Rd2+ {[%clk 0:00:03.6]} 43.
Kc6 {[%clk 0:00:08.6]} 43... Ne5+ {[%clk 0:00:03.4]} 44. Kc7 {[%clk 0:00:08.2]}
44... Rd3 {[%clk 0:00:02.6]} 45. Nc4 {[%clk 0:00:07.6]} 1-0

[Event "Late-Titled-Tuesday-Blitz-June-25-2024"]
[Site "Chess.com"]
[Date "2024.06.25"]
[Round "7"]
[White "ManMish2"]
[Black "hansen"]
[Result "1-0"]
[WhiteElo "2646"]
[BlackElo "2956"]
[TimeControl "180+1"]
[EndTime "15:16:55 PDT"]
[Termination "ManMish2 won by resignation"]

1. e4 {[%clk 0:03:00.9]} 1... c5 {[%clk 0:03:00.2]} 2. c3 {[%clk 0:03:00.4]}
2... Nf6 {[%clk 0:02:59.8]} 3. e5 {[%clk 0:02:59.6]} 3... Nd5 {[%clk 0:03:00.5]}
4. d4 {[%clk 0:02:59.8]} 4... cxd4 {[%clk 0:03:01.4]} 5. Nf3 {[%clk 0:02:59.8]}
5... Nc6 {[%clk 0:03:01.8]} 6. Bc4 {[%clk 0:03:00.4]} 6... Nb6 {[%clk 0:03:02]}
7. Bb3 {[%clk 0:03:00.9]} 7... d5 {[%clk 0:03:02.5]} 8. exd6 {[%clk 0:02:59.2]}
8... Qxd6 {[%clk 0:03:02.8]} 9. Nxd4 {[%clk 0:02:59.1]} 9... Nxd4 {[%clk
0:03:01.6]} 10. cxd4 {[%clk 0:03:00]} 10... Be6 {[%clk 0:03:02.2]} 11. O-O
{[%clk 0:03:00.4]} 11... Bxb3 {[%clk 0:03:02.6]} 12. Qxb3 {[%clk 0:03:01.1]}
12... e6 {[%clk 0:03:02.8]} 13. Nc3 {[%clk 0:03:01.7]} 13... Be7 {[%clk
0:03:03.1]} 14. Nb5 {[%clk 0:03:01.8]} 14... Qd7 {[%clk 0:03:03.1]} 15. Nxa7
{[%clk 0:03:02.1]} 15... Nd5 {[%clk 0:02:44]} 16. Nb5 {[%clk 0:03:00]} 16... O-O
{[%clk 0:02:44.8]} 17. Be3 {[%clk 0:02:52.7]} 17... h5 {[%clk 0:02:43.5]} 18.
Nc3 {[%clk 0:02:47.4]} 18... Ra5 {[%clk 0:02:35.9]} 19. Nxd5 {[%clk 0:02:24.9]}
19... Rxd5 {[%clk 0:02:35.9]} 20. Rac1 {[%clk 0:02:24.8]} 20... Ra8 {[%clk
0:02:34.9]} 21. a3 {[%clk 0:02:16]} 21... Bd6 {[%clk 0:02:34.6]} 22. h3 {[%clk
0:02:01.2]} 22... h4 {[%clk 0:02:24.9]} 23. Qd3 {[%clk 0:01:55]} 23... Bc7
{[%clk 0:02:14.4]} 24. Qe4 {[%clk 0:01:17.9]} 24... Bd8 {[%clk 0:02:14.7]} 25.
Rc5 {[%clk 0:01:11.8]} 25... Bf6 {[%clk 0:02:14.5]} 26. Rxd5 {[%clk 0:01:09.7]}
26... exd5 {[%clk 0:02:15.4]} 27. Qg4 {[%clk 0:00:59.7]} 27... Qb5 {[%clk
0:02:13.9]} 28. Rc1 {[%clk 0:00:44.7]} 28... g6 {[%clk 0:01:16.1]} 29. Rc8+
{[%clk 0:00:43]} 29... Rxc8 {[%clk 0:01:16.3]} 30. Qxc8+ {[%clk 0:00:43.4]}
30... Kg7 {[%clk 0:01:17.2]} 31. Qc2 {[%clk 0:00:43.1]} 31... Qb6 {[%clk
0:01:07.5]} 32. Qd2 {[%clk 0:00:40.7]} 32... Qb3 {[%clk 0:01:06.4]} 33. Kh2
{[%clk 0:00:31.9]} 33... Be7 {[%clk 0:01:04.6]} 34. Bh6+ {[%clk 0:00:28.7]}
34... Kg8 {[%clk 0:01:03.5]} 35. Bg5 {[%clk 0:00:17.6]} 35... Bd6+ {[%clk
0:00:53.4]} 36. Bf4 {[%clk 0:00:17.5]} 36... Be7 {[%clk 0:00:29.3]} 37. Qe3
{[%clk 0:00:15.5]} 37... Qxe3 {[%clk 0:00:24.3]} 38. Bxe3 {[%clk 0:00:16.4]}
38... b5 {[%clk 0:00:18]} 39. Kg1 {[%clk 0:00:16.2]} 39... g5 {[%clk 0:00:16.7]}
40. Kf1 {[%clk 0:00:16.5]} 40... Kg7 {[%clk 0:00:17.2]} 41. Ke2 {[%clk 0:00:17]}
41... Kg6 {[%clk 0:00:18]} 42. Kd3 {[%clk 0:00:17.4]} 42... f5 {[%clk
0:00:18.9]} 43. Bc1 {[%clk 0:00:16.7]} 43... g4 {[%clk 0:00:13.2]} 44. b3 {[%clk
0:00:16.7]} 44... Bd6 {[%clk 0:00:13.5]} 45. a4 {[%clk 0:00:15.9]} 45... bxa4
{[%clk 0:00:14.2]} 46. bxa4 {[%clk 0:00:16.6]} 46... f4 {[%clk 0:00:15.1]} 47.
f3 {[%clk 0:00:15]} 47... gxf3 {[%clk 0:00:09.2]} 48. gxf3 {[%clk 0:00:15.9]}
48... Kf5 {[%clk 0:00:08.8]} 49. a5 {[%clk 0:00:15.7]} 49... Bc7 {[%clk
0:00:09.2]} 50. a6 {[%clk 0:00:15.4]} 50... Bb6 {[%clk 0:00:09.2]} 51. Bd2
{[%clk 0:00:09.9]} 1-0

[Event "Late-Titled-Tuesday-Blitz-June-25-2024"]
[Site "Chess.com"]
[Date "2024.06.25"]
[Round "7"]
[White "BardArtem"]
[Black "djano"]
[Result "1-0"]
[WhiteElo "2820"]
[BlackElo "2577"]
[TimeControl "180+1"]
[EndTime "15:16:55 PDT"]
[Termination "BardArtem won by resignation"]

1. e4 {[%clk 0:03:00.9]} 1... e6 {[%clk 0:03:00.2]} 2. d4 {[%clk 0:02:59.3]}
2... d5 {[%clk 0:03:00.8]} 3. Nc3 {[%clk 0:02:59.7]} 3... Nf6 {[%clk 0:02:57.9]}
4. Qd3 {[%clk 0:02:59.6]} 4... c5 {[%clk 0:02:52.4]} 5. exd5 {[%clk 0:02:55.7]}
5... exd5 {[%clk 0:02:50.1]} 6. Bg5 {[%clk 0:02:55.4]} 6... cxd4 {[%clk
0:02:44.5]} 7. Qxd4 {[%clk 0:02:56.3]} 7... Be7 {[%clk 0:02:44.2]} 8. Bb5+
{[%clk 0:02:52.1]} 8... Nc6 {[%clk 0:02:40.2]} 9. Bxf6 {[%clk 0:02:52]} 9...
Bxf6 {[%clk 0:02:38.9]} 10. Qc5 {[%clk 0:02:51.4]} 10... Be7 {[%clk 0:02:21.7]}
11. Qxd5 {[%clk 0:02:45.5]} 11... Qb6 {[%clk 0:02:20.4]} 12. Nf3 {[%clk
0:02:05.7]} 12... Be6 {[%clk 0:02:17.4]} 13. Qe4 {[%clk 0:02:03.3]} 13... a6
{[%clk 0:02:02.5]} 14. Bxc6+ {[%clk 0:01:58.2]} 14... bxc6 {[%clk 0:02:03.4]}
15. O-O {[%clk 0:01:56.3]} 15... O-O {[%clk 0:01:56.8]} 16. Nd4 {[%clk 0:01:54]}
16... Bf6 {[%clk 0:01:39.6]} 17. Nxe6 {[%clk 0:01:23.8]} 17... fxe6 {[%clk
0:01:40.5]} 18. Qxe6+ {[%clk 0:01:20.3]} 18... Kh8 {[%clk 0:01:40.8]} 19. Qb3
{[%clk 0:01:19.9]} 19... Qc7 {[%clk 0:01:39.6]} 20. Rab1 {[%clk 0:00:58.6]}
20... Rab8 {[%clk 0:01:31.3]} 21. Qc4 {[%clk 0:00:54.5]} 21... Be5 {[%clk
0:01:30.7]} 22. h3 {[%clk 0:00:36.2]} 22... Rf4 {[%clk 0:01:27.4]} 23. Qe2
{[%clk 0:00:35.3]} 23... Bd4 {[%clk 0:01:10.5]} 24. Kh1 {[%clk 0:00:20.8]} 24...
a5 {[%clk 0:01:05.4]} 25. f3 {[%clk 0:00:14.7]} 25... Rbf8 {[%clk 0:01:01.9]}
26. Ne4 {[%clk 0:00:11.9]} 26... Ba7 {[%clk 0:01:02.5]} 27. Rbd1 {[%clk
0:00:11.1]} 27... Bb8 {[%clk 0:01:02.7]} 28. g3 {[%clk 0:00:07]} 28... R4f5
{[%clk 0:00:49.2]} 29. f4 {[%clk 0:00:07]} 29... Rh5 {[%clk 0:00:39]} 30. Qxh5
{[%clk 0:00:05]} 30... Qe7 {[%clk 0:00:35]} 31. Qf3 {[%clk 0:00:04]} 31... Qb4
{[%clk 0:00:35.7]} 32. b3 {[%clk 0:00:02.2]} 32... c5 {[%clk 0:00:35.8]} 33.
Rfe1 {[%clk 0:00:02.3]} 33... h6 {[%clk 0:00:36.3]} 34. Nd2 {[%clk 0:00:01.8]}
34... Qa3 {[%clk 0:00:35.8]} 35. Nc4 {[%clk 0:00:02.1]} 35... Qb4 {[%clk
0:00:35.6]} 36. Qe4 {[%clk 0:00:02.4]} 36... Qb5 {[%clk 0:00:35.1]} 37. Ne5
{[%clk 0:00:02.8]} 37... Bxe5 {[%clk 0:00:31.4]} 38. Qxe5 {[%clk 0:00:03.7]}
38... Qc6+ {[%clk 0:00:31.3]} 39. Qe4 {[%clk 0:00:04.2]} 39... Qf6 {[%clk
0:00:31.8]} 40. c4 {[%clk 0:00:04.3]} 40... Qb2 {[%clk 0:00:32.4]} 41. Re2
{[%clk 0:00:04.7]} 41... Qa3 {[%clk 0:00:33.3]} 42. h4 {[%clk 0:00:03.7]} 42...
Rg8 {[%clk 0:00:33.1]} 43. h5 {[%clk 0:00:03.8]} 43... a4 {[%clk 0:00:33.6]} 44.
Qd3 {[%clk 0:00:03]} 44... axb3 {[%clk 0:00:33.6]} 45. axb3 {[%clk 0:00:03.9]}
45... Qa8+ {[%clk 0:00:34.3]} 46. Kh2 {[%clk 0:00:04.2]} 46... Qb8 {[%clk
0:00:35.2]} 47. Red2 {[%clk 0:00:03.5]} 47... Qf8 {[%clk 0:00:36.1]} 48. Qg6
{[%clk 0:00:03.7]} 48... Qe7 {[%clk 0:00:34.8]} 49. Rg2 {[%clk 0:00:01.6]} 49...
Qe4 {[%clk 0:00:31.9]} 50. Rgd2 {[%clk 0:00:02.1]} 50... Qf3 {[%clk 0:00:32]}
51. Qd3 {[%clk 0:00:01.4]} 51... Qxh5+ {[%clk 0:00:31.9]} 52. Kg2 {[%clk
0:00:02.1]} 52... Qg4 {[%clk 0:00:32.8]} 53. Qf3 {[%clk 0:00:02.7]} 53... Qf5
{[%clk 0:00:33]} 54. Rd8 {[%clk 0:00:02.9]} 54... Kh7 {[%clk 0:00:31.5]} 55.
Rxg8 {[%clk 0:00:02.5]} 55... Kxg8 {[%clk 0:00:32.4]} 56. Qd5+ {[%clk
0:00:03.1]} 56... Kh7 {[%clk 0:00:33.3]} 57. Qxf5+ {[%clk 0:00:03.4]} 1-0

[Event "Late-Titled-Tuesday-Blitz-June-25-2024"]
[Site "Chess.com"]
[Date "2024.06.25"]
[Round "7"]
[White "igorkovalenko"]
[Black "Alex_Sahakyan2006"]
[Result "1-0"]
[WhiteElo "3001"]
[BlackElo "2745"]
[TimeControl "180+1"]
[EndTime "15:16:57 PDT"]
[Termination "igorkovalenko won by resignation"]

1. d4 {[%clk 0:02:59.5]} 1... Nf6 {[%clk 0:02:59.4]} 2. c4 {[%clk 0:02:59.1]}
2... g6 {[%clk 0:03:00]} 3. Nc3 {[%clk 0:02:59.2]} 3... Bg7 {[%clk 0:03:00.7]}
4. e4 {[%clk 0:02:59.3]} 4... d6 {[%clk 0:03:01.5]} 5. h3 {[%clk 0:02:59.5]}
5... O-O {[%clk 0:03:02.2]} 6. Be3 {[%clk 0:03:00.2]} 6... c5 {[%clk 0:03:02.3]}
7. d5 {[%clk 0:02:55.2]} 7... e6 {[%clk 0:03:02]} 8. Nf3 {[%clk 0:02:53.7]} 8...
exd5 {[%clk 0:03:01]} 9. exd5 {[%clk 0:02:54.4]} 9... Re8 {[%clk 0:03:01.2]} 10.
Bd3 {[%clk 0:02:55.1]} 10... Rxe3+ {[%clk 0:03:01.5]} 11. fxe3 {[%clk
0:02:55.1]} 11... Qe7 {[%clk 0:03:02]} 12. O-O {[%clk 0:02:54.5]} 12... Nbd7
{[%clk 0:03:02.2]} 13. Qd2 {[%clk 0:02:46.7]} 13... Ne5 {[%clk 0:03:01.2]} 14.
Nxe5 {[%clk 0:02:38.1]} 14... Qxe5 {[%clk 0:03:02.1]} 15. Rf3 {[%clk 0:02:38.6]}
15... Nh5 {[%clk 0:02:41.4]} 16. Qf2 {[%clk 0:02:36.6]} 16... f5 {[%clk
0:02:40.1]} 17. Rf1 {[%clk 0:02:28.9]} 17... Bd7 {[%clk 0:02:39.5]} 18. g3
{[%clk 0:02:19.3]} 18... a6 {[%clk 0:02:37.6]} 19. Kg2 {[%clk 0:02:12.6]} 19...
Nf6 {[%clk 0:02:14.6]} 20. g4 {[%clk 0:01:55.9]} 20... b5 {[%clk 0:02:04.9]} 21.
gxf5 {[%clk 0:01:52.6]} 21... g5 {[%clk 0:02:05]} 22. Qg3 {[%clk 0:01:48.9]}
22... Qe7 {[%clk 0:02:01.7]} 23. Qxg5 {[%clk 0:01:43.4]} 23... bxc4 {[%clk
0:01:59.1]} 24. Bxc4 {[%clk 0:01:39.5]} 24... Rb8 {[%clk 0:01:59.6]} 25. b3
{[%clk 0:01:37.6]} 25... Kh8 {[%clk 0:01:50.8]} 26. Kh1 {[%clk 0:01:37.5]} 26...
h6 {[%clk 0:01:44.5]} 27. Qh4 {[%clk 0:01:37.7]} 27... Qe5 {[%clk 0:01:43.6]}
28. Ne2 {[%clk 0:01:30.3]} 28... Rf8 {[%clk 0:01:24.9]} 29. Ng3 {[%clk
0:01:21.9]} 29... Be8 {[%clk 0:01:14.9]} 30. e4 {[%clk 0:01:20.6]} 30... a5
{[%clk 0:01:05.7]} 31. a4 {[%clk 0:01:20.5]} 31... Nh7 {[%clk 0:00:44.7]} 32.
Qf4 {[%clk 0:01:00.9]} 32... Qe7 {[%clk 0:00:31.2]} 33. Bb5 {[%clk 0:00:58.1]}
33... Ng5 {[%clk 0:00:20.6]} 34. Bxe8 {[%clk 0:00:57.9]} 34... Nxf3 {[%clk
0:00:20.9]} 35. Rxf3 {[%clk 0:00:54.5]} 35... Qxe8 {[%clk 0:00:18.6]} 36. Qxd6
{[%clk 0:00:53.1]} 36... Bf6 {[%clk 0:00:14.6]} 37. e5 {[%clk 0:00:41.8]} 37...
Bxe5 {[%clk 0:00:07.2]} 38. Qxh6+ {[%clk 0:00:41.6]} 38... Kg8 {[%clk
0:00:08.1]} 39. Nh5 {[%clk 0:00:28.2]} 39... Rf7 {[%clk 0:00:03.2]} 40. Qg6+
{[%clk 0:00:22.2]} 40... Kf8 {[%clk 0:00:03.2]} 41. Re3 {[%clk 0:00:20.7]} 41...
c4 {[%clk 0:00:01.6]} 42. bxc4 {[%clk 0:00:15.4]} 42... Qxa4 {[%clk 0:00:02]}
43. Qh6+ {[%clk 0:00:15.3]} 43... Kg8 {[%clk 0:00:02.7]} 44. f6 {[%clk
0:00:14.1]} 44... Qd1+ {[%clk 0:00:01]} 45. Kg2 {[%clk 0:00:14.6]} 45... Qd2+
{[%clk 0:00:01.7]} 46. Kf3 {[%clk 0:00:15.2]} 46... Qd1+ {[%clk 0:00:02.4]} 47.
Kf2 {[%clk 0:00:15.1]} 47... Qd2+ {[%clk 0:00:02.7]} 48. Kf3 {[%clk 0:00:15.8]}
48... Qd1+ {[%clk 0:00:03.3]} 49. Ke4 {[%clk 0:00:16.4]} 49... Qd4+ {[%clk
0:00:03.9]} 50. Kf5 {[%clk 0:00:16.4]} 50... Bc7 {[%clk 0:00:02.8]} 51. Re8+
{[%clk 0:00:15.9]} 1-0

[Event "Late-Titled-Tuesday-Blitz-June-25-2024"]
[Site "Chess.com"]
[Date "2024.06.25"]
[Round "7"]
[White "Navyblue1"]
[Black "carloseduar100"]
[Result "0-1"]
[WhiteElo "2152"]
[BlackElo "2283"]
[TimeControl "180+1"]
[EndTime "15:16:57 PDT"]
[Termination "carloseduar100 won on time"]

1. d4 {[%clk 0:03:00.9]} 1... d5 {[%clk 0:02:59.1]} 2. c4 {[%clk 0:03:01.2]}
2... e5 {[%clk 0:02:58.6]} 3. cxd5 {[%clk 0:02:55.5]} 3... Qxd5 {[%clk
0:02:57.7]} 4. Nf3 {[%clk 0:02:52]} 4... exd4 {[%clk 0:02:57.6]} 5. Nc3 {[%clk
0:02:50.2]} 5... Bb4 {[%clk 0:02:56.4]} 6. Qxd4 {[%clk 0:02:35.5]} 6... Qxd4
{[%clk 0:02:53.5]} 7. Nxd4 {[%clk 0:02:34.7]} 7... c6 {[%clk 0:02:49.8]} 8. Bd2
{[%clk 0:02:32.7]} 8... Nf6 {[%clk 0:02:48.2]} 9. e3 {[%clk 0:02:31.6]} 9... O-O
{[%clk 0:02:47.8]} 10. Be2 {[%clk 0:02:23.5]} 10... Nbd7 {[%clk 0:02:47.7]} 11.
O-O {[%clk 0:02:18.7]} 11... Ne5 {[%clk 0:02:46.8]} 12. Rfd1 {[%clk 0:02:12.4]}
12... Re8 {[%clk 0:02:46.7]} 13. h3 {[%clk 0:02:10.1]} 13... h6 {[%clk
0:02:46.5]} 14. a3 {[%clk 0:02:06.9]} 14... Bd6 {[%clk 0:02:46]} 15. a4 {[%clk
0:02:00.8]} 15... a6 {[%clk 0:02:45.4]} 16. Rab1 {[%clk 0:01:52.4]} 16... Ng6
{[%clk 0:02:30.2]} 17. b4 {[%clk 0:01:42.7]} 17... Bd7 {[%clk 0:02:18.9]} 18.
Be1 {[%clk 0:01:13.2]} 18... Bc7 {[%clk 0:02:09.6]} 19. b5 {[%clk 0:00:58.1]}
19... axb5 {[%clk 0:02:09.4]} 20. axb5 {[%clk 0:00:57.1]} 20... c5 {[%clk
0:02:10]} 21. Nb3 {[%clk 0:00:50.8]} 21... b6 {[%clk 0:02:08.1]} 22. Nd2 {[%clk
0:00:38.5]} 22... Bf5 {[%clk 0:02:03.3]} 23. Rbc1 {[%clk 0:00:32.3]} 23... Ne5
{[%clk 0:01:50.8]} 24. Nc4 {[%clk 0:00:26.9]} 24... Red8 {[%clk 0:01:45.1]} 25.
Rxd8+ {[%clk 0:00:19.9]} 25... Rxd8 {[%clk 0:01:41.7]} 26. Rd1 {[%clk
0:00:19.5]} 26... Rxd1 {[%clk 0:01:24.8]} 27. Nxd1 {[%clk 0:00:18.4]} 27... Kf8
{[%clk 0:01:11.3]} 28. Bc3 {[%clk 0:00:16.6]} 28... Nfd7 {[%clk 0:01:11.8]} 29.
Nxe5 {[%clk 0:00:16.2]} 29... Bxe5 {[%clk 0:01:07.1]} 30. Bxe5 {[%clk
0:00:16.1]} 30... Nxe5 {[%clk 0:01:07.7]} 31. Nc3 {[%clk 0:00:16.6]} 31... Nd7
{[%clk 0:00:54.1]} 32. Bf3 {[%clk 0:00:15.2]} 32... Be6 {[%clk 0:00:49.5]} 33.
Bc6 {[%clk 0:00:15]} 33... Ne5 {[%clk 0:00:46.1]} 34. Be4 {[%clk 0:00:12.9]}
34... Ke7 {[%clk 0:00:43.6]} 35. f4 {[%clk 0:00:12.1]} 35... Nd7 {[%clk
0:00:43.4]} 36. Kf2 {[%clk 0:00:11.6]} 36... Kd6 {[%clk 0:00:41.3]} 37. g4
{[%clk 0:00:11.5]} 37... g5 {[%clk 0:00:20.5]} 38. f5 {[%clk 0:00:10.9]} 38...
Bb3 {[%clk 0:00:20.3]} 39. Bd3 {[%clk 0:00:08.5]} 39... Ne5 {[%clk 0:00:19.1]}
40. Be2 {[%clk 0:00:08.6]} 40... Bd5 {[%clk 0:00:18.5]} 41. e4 {[%clk
0:00:08.6]} 41... Bb7 {[%clk 0:00:16.2]} 42. Ke3 {[%clk 0:00:08.8]} 42... f6
{[%clk 0:00:15.9]} 43. Bf1 {[%clk 0:00:08.1]} 43... Nd7 {[%clk 0:00:16.1]} 44.
Bc4 {[%clk 0:00:07.9]} 44... Ke5 {[%clk 0:00:16.2]} 45. Bg8 {[%clk 0:00:05.3]}
45... Nf8 {[%clk 0:00:13.9]} 46. Bd5 {[%clk 0:00:03.9]} 46... Bxd5 {[%clk
0:00:12.2]} 47. Nxd5 {[%clk 0:00:04]} 47... Nd7 {[%clk 0:00:12.8]} 48. Nc3
{[%clk 0:00:01.6]} 48... c4 {[%clk 0:00:12.9]} 49. Nd5 {[%clk 0:00:01]} 49...
Kd6 {[%clk 0:00:12.7]} 0-1